[Event "Late-Titled-Tuesday-Blitz-February-27-2024"]
[Site "Chess.com"]
[Date "2024.02.27"]
[Round "10"]
[White "PositionalPanther"]
[Black "emeli_chess"]
[Result "1/2-1/2"]
[WhiteElo "2508"]
[BlackElo "2445"]
[TimeControl "180+1"]
[EndTime "15:55:17 PST"]
[Termination "Game drawn by repetition"]

1. Nf3 {[%clk 0:03:00.9]} 1... f5 {[%clk 0:02:59.3]} 2. d3 {[%clk 0:02:58]} 2...
d6 {[%clk 0:02:58.4]} 3. e4 {[%clk 0:02:58.4]} 3... e5 {[%clk 0:02:58.7]} 4.
exf5 {[%clk 0:02:17.5]} 4... Bxf5 {[%clk 0:02:50.1]} 5. d4 {[%clk 0:02:17]} 5...
Nc6 {[%clk 0:02:35.4]} 6. dxe5 {[%clk 0:02:15.4]} 6... dxe5 {[%clk 0:02:31]} 7.
Qxd8+ {[%clk 0:02:13.2]} 7... Rxd8 {[%clk 0:02:30.5]} 8. Bb5 {[%clk 0:02:13.5]}
8... Bd6 {[%clk 0:02:28]} 9. Bxc6+ {[%clk 0:01:57.4]} 9... bxc6 {[%clk
0:02:27.4]} 10. c3 {[%clk 0:01:57.9]} 10... Nf6 {[%clk 0:02:24.6]} 11. Be3
{[%clk 0:01:56.1]} 11... O-O {[%clk 0:02:22]} 12. Nbd2 {[%clk 0:01:54.4]} 12...
Nd5 {[%clk 0:02:20]} 13. Bg5 {[%clk 0:01:25.7]} 13... Rb8 {[%clk 0:02:18.2]} 14.
Nc4 {[%clk 0:01:21]} 14... Bd3 {[%clk 0:01:58.6]} 15. Nxd6 {[%clk 0:01:17.9]}
15... cxd6 {[%clk 0:01:55.3]} 16. Bc1 {[%clk 0:00:52]} 16... Nf4 {[%clk
0:01:48.2]} 17. Bxf4 {[%clk 0:00:50.9]} 17... Rxf4 {[%clk 0:01:47.5]} 18. O-O-O
{[%clk 0:00:45.7]} 18... Ra4 {[%clk 0:01:28.7]} 19. Rxd3 {[%clk 0:00:40.5]}
19... e4 {[%clk 0:01:29]} 20. Rxd6 {[%clk 0:00:21.5]} 20... exf3 {[%clk
0:01:28.9]} 21. gxf3 {[%clk 0:00:19.2]} 21... Rxa2 {[%clk 0:01:28.9]} 22. Rhd1
{[%clk 0:00:19.8]} 22... Rbxb2 {[%clk 0:01:18.3]} 23. Rd7 {[%clk 0:00:20]} 23...
Rc2+ {[%clk 0:01:12.4]} 24. Kb1 {[%clk 0:00:20.3]} 24... Rab2+ {[%clk
0:01:12.6]} 25. Ka1 {[%clk 0:00:20.3]} 25... a5 {[%clk 0:00:51.2]} 26. Ra7
{[%clk 0:00:19.9]} 26... h6 {[%clk 0:00:44.1]} 27. Rdd7 {[%clk 0:00:19.5]} 27...
Ra2+ {[%clk 0:00:36.1]} 28. Kb1 {[%clk 0:00:19.4]} 28... Rcb2+ {[%clk
0:00:29.6]} 29. Kc1 {[%clk 0:00:19.2]} 29... Rxf2 {[%clk 0:00:29.6]} 30. Rxg7+
{[%clk 0:00:18.4]} 30... Kh8 {[%clk 0:00:28.1]} 31. Rh7+ {[%clk 0:00:18.6]}
31... Kg8 {[%clk 0:00:28.4]} 32. Rhg7+ {[%clk 0:00:19.1]} 32... Kh8 {[%clk
0:00:28.1]} 33. Rh7+ {[%clk 0:00:19.5]} 33... Kg8 {[%clk 0:00:28.3]} 34. Rhg7+
{[%clk 0:00:19.8]} 1/2-1/2

[Event "Late-Titled-Tuesday-Blitz-February-27-2024"]
[Site "Chess.com"]
[Date "2024.02.27"]
[Round "10"]
[White "jaskol95"]
[Black "gahryman"]
[Result "0-1"]
[WhiteElo "2575"]
[BlackElo "2701"]
[TimeControl "180+1"]
[EndTime "15:55:22 PST"]
[Termination "gahryman won by checkmate"]

1. e4 {[%clk 0:03:00.9]} 1... c5 {[%clk 0:02:56.9]} 2. Nf3 {[%clk 0:03:00.8]}
2... Nc6 {[%clk 0:02:43.2]} 3. b4 {[%clk 0:03:00]} 3... cxb4 {[%clk 0:02:39.2]}
4. d4 {[%clk 0:03:00]} 4... d5 {[%clk 0:02:37.7]} 5. exd5 {[%clk 0:02:59.3]}
5... Qxd5 {[%clk 0:02:37.1]} 6. c4 {[%clk 0:03:00]} 6... Qd6 {[%clk 0:02:31.8]}
7. d5 {[%clk 0:02:47.2]} 7... Ne5 {[%clk 0:02:17.8]} 8. Bb2 {[%clk 0:02:29.3]}
8... Nxf3+ {[%clk 0:02:16.6]} 9. Qxf3 {[%clk 0:02:30.2]} 9... Nf6 {[%clk
0:02:16.9]} 10. Bd3 {[%clk 0:02:17.5]} 10... g6 {[%clk 0:01:56.1]} 11. c5 {[%clk
0:02:09.3]} 11... Qxc5 {[%clk 0:01:48.5]} 12. Bxf6 {[%clk 0:02:07.2]} 12... exf6
{[%clk 0:01:48.4]} 13. O-O {[%clk 0:02:07.3]} 13... Be7 {[%clk 0:01:37.9]} 14.
Nd2 {[%clk 0:01:52.6]} 14... O-O {[%clk 0:01:27.1]} 15. Ne4 {[%clk 0:01:52.1]}
15... Qd4 {[%clk 0:01:14.2]} 16. d6 {[%clk 0:01:51.3]} 16... Bd8 {[%clk
0:01:06.4]} 17. Rad1 {[%clk 0:01:44.5]} 17... f5 {[%clk 0:01:05.6]} 18. Ng3
{[%clk 0:01:34]} 18... Qc3 {[%clk 0:01:01.1]} 19. Rc1 {[%clk 0:01:30.6]} 19...
Qf6 {[%clk 0:00:57.6]} 20. Bb5 {[%clk 0:01:18.2]} 20... Be6 {[%clk 0:00:53.3]}
21. Qxb7 {[%clk 0:01:11.9]} 21... Bb6 {[%clk 0:00:53.2]} 22. Rfd1 {[%clk
0:01:06.1]} 22... Rad8 {[%clk 0:00:52.5]} 23. Ne2 {[%clk 0:00:52.9]} 23... Qe5
{[%clk 0:00:47.9]} 24. Ba6 {[%clk 0:00:26.5]} 24... Rxd6 {[%clk 0:00:47.4]} 25.
Re1 {[%clk 0:00:26.6]} 25... Rd2 {[%clk 0:00:46.1]} 26. Qf3 {[%clk 0:00:17.3]}
26... Bd5 {[%clk 0:00:43.5]} 27. Qh3 {[%clk 0:00:16.3]} 27... Re8 {[%clk
0:00:41.8]} 28. Qh6 {[%clk 0:00:11]} 28... f4 {[%clk 0:00:37.7]} 29. h4 {[%clk
0:00:09.5]} 29... Bxf2+ {[%clk 0:00:32.5]} 30. Kxf2 {[%clk 0:00:08.4]} 30...
Qe3+ {[%clk 0:00:33]} 31. Kf1 {[%clk 0:00:09]} 31... Bxg2+ {[%clk 0:00:33.6]}
32. Kxg2 {[%clk 0:00:09.1]} 32... f3+ {[%clk 0:00:34.2]} 33. Kh1 {[%clk
0:00:06.5]} 33... Qxh6 {[%clk 0:00:34.8]} 34. Ng3 {[%clk 0:00:06.9]} 34... Qxh4+
{[%clk 0:00:34.8]} 35. Kg1 {[%clk 0:00:07.6]} 35... Qxg3+ {[%clk 0:00:35]} 36.
Kf1 {[%clk 0:00:08.5]} 36... Qg2# {[%clk 0:00:35.5]} 0-1

[Event "Late-Titled-Tuesday-Blitz-February-27-2024"]
[Site "Chess.com"]
[Date "2024.02.27"]
[Round "10"]
[White "db-banana"]
[Black "chessydotcom"]
[Result "0-1"]
[WhiteElo "2469"]
[BlackElo "2349"]
[TimeControl "180+1"]
[EndTime "15:55:29 PST"]
[Termination "chessydotcom won by resignation"]

1. e4 {[%clk 0:03:00.9]} 1... c5 {[%clk 0:02:58.5]} 2. Nf3 {[%clk 0:03:00.7]}
2... e6 {[%clk 0:02:58.9]} 3. d3 {[%clk 0:03:01.3]} 3... Nc6 {[%clk 0:02:58.6]}
4. g3 {[%clk 0:03:01.8]} 4... Nge7 {[%clk 0:02:58.1]} 5. Bg2 {[%clk 0:03:02.3]}
5... g6 {[%clk 0:02:58.7]} 6. O-O {[%clk 0:03:01.9]} 6... Bg7 {[%clk 0:02:59.3]}
7. c3 {[%clk 0:03:02.6]} 7... d5 {[%clk 0:02:59.5]} 8. exd5 {[%clk 0:02:55.6]}
8... Nxd5 {[%clk 0:02:58.1]} 9. Bg5 {[%clk 0:02:52.7]} 9... Qc7 {[%clk 0:02:56]}
10. d4 {[%clk 0:02:49.4]} 10... cxd4 {[%clk 0:02:52]} 11. Nxd4 {[%clk
0:02:46.3]} 11... Nxd4 {[%clk 0:02:51.8]} 12. cxd4 {[%clk 0:02:46.3]} 12... O-O
{[%clk 0:02:50.3]} 13. Nd2 {[%clk 0:02:46]} 13... Bxd4 {[%clk 0:02:42]} 14. Rc1
{[%clk 0:02:38.2]} 14... Qb6 {[%clk 0:02:35.9]} 15. Nc4 {[%clk 0:02:33.1]} 15...
Qc5 {[%clk 0:02:28.2]} 16. Ne5 {[%clk 0:02:11.5]} 16... Qb4 {[%clk 0:02:24.1]}
17. Ng4 {[%clk 0:02:07.6]} 17... Bxb2 {[%clk 0:02:03.8]} 18. Rb1 {[%clk
0:01:47.4]} 18... Nc3 {[%clk 0:01:47.1]} 19. Rxb2 {[%clk 0:01:37.3]} 19... Qxb2
{[%clk 0:01:42.7]} 20. Qf3 {[%clk 0:01:00]} 20... f5 {[%clk 0:01:30.9]} 21. Nh6+
{[%clk 0:00:38.8]} 21... Kg7 {[%clk 0:01:27.2]} 22. Bc1 {[%clk 0:00:38.9]} 22...
Ne2+ {[%clk 0:01:23.5]} 23. Kh1 {[%clk 0:00:34.6]} 23... Nxc1 {[%clk 0:01:24]}
24. Qf4 {[%clk 0:00:32.3]} 24... Nd3 {[%clk 0:01:17.3]} 25. Qc7+ {[%clk
0:00:23]} 25... Kxh6 {[%clk 0:01:14.3]} 26. g4 {[%clk 0:00:17.6]} 26... fxg4
{[%clk 0:01:04.6]} 27. Qe7 {[%clk 0:00:13.5]} 27... Qf6 {[%clk 0:01:00]} 28. Qa3
{[%clk 0:00:04]} 28... Nxf2+ {[%clk 0:00:58.4]} 29. Kg1 {[%clk 0:00:04.1]} 29...
Kg7 {[%clk 0:00:39.8]} 30. Rc1 {[%clk 0:00:03.3]} 30... Nh3+ {[%clk 0:00:38.9]}
31. Bxh3 {[%clk 0:00:03.4]} 31... Qf2+ {[%clk 0:00:39.3]} 32. Kh1 {[%clk
0:00:03.9]} 32... Qf3+ {[%clk 0:00:38.5]} 33. Qxf3 {[%clk 0:00:04.5]} 33... gxf3
{[%clk 0:00:38.5]} 34. Rc7+ {[%clk 0:00:05.4]} 34... Rf7 {[%clk 0:00:37.7]} 0-1

[Event "Late-Titled-Tuesday-Blitz-February-27-2024"]
[Site "Chess.com"]
[Date "2024.02.27"]
[Round "10"]
[White "LUISMIGUELOV"]
[Black "cthake"]
[Result "1-0"]
[WhiteElo "2188"]
[BlackElo "1834"]
[TimeControl "180+1"]
[EndTime "15:55:30 PST"]
[Termination "LUISMIGUELOV won by resignation"]

1. e4 {[%clk 0:02:53.2]} 1... e6 {[%clk 0:02:55.5]} 2. b3 {[%clk 0:02:51.8]}
2... d5 {[%clk 0:02:52.4]} 3. Bb2 {[%clk 0:02:52.3]} 3... d4 {[%clk 0:02:52]} 4.
c3 {[%clk 0:02:48.4]} 4... c5 {[%clk 0:02:48.3]} 5. cxd4 {[%clk 0:02:46.7]} 5...
cxd4 {[%clk 0:02:48.5]} 6. Nf3 {[%clk 0:02:46.9]} 6... Nc6 {[%clk 0:02:44.6]} 7.
Bb5 {[%clk 0:02:46.1]} 7... Bc5 {[%clk 0:02:39.3]} 8. O-O {[%clk 0:02:42.1]}
8... Ne7 {[%clk 0:02:32.6]} 9. d3 {[%clk 0:02:24.9]} 9... a6 {[%clk 0:02:28.2]}
10. Bxc6+ {[%clk 0:02:24]} 10... Nxc6 {[%clk 0:02:27.7]} 11. Nbd2 {[%clk
0:02:21.9]} 11... O-O {[%clk 0:02:25.2]} 12. Rc1 {[%clk 0:02:22.2]} 12... Bb6
{[%clk 0:02:19.2]} 13. Nc4 {[%clk 0:02:19.3]} 13... Ba7 {[%clk 0:02:17.8]} 14.
a4 {[%clk 0:02:19]} 14... Re8 {[%clk 0:01:59.4]} 15. e5 {[%clk 0:02:13.1]} 15...
Bb8 {[%clk 0:01:42.3]} 16. Re1 {[%clk 0:02:10.6]} 16... Qd5 {[%clk 0:01:40.8]}
17. Re4 {[%clk 0:02:07.2]} 17... Bc7 {[%clk 0:01:34.8]} 18. Nxd4 {[%clk
0:02:02.8]} 18... Nxd4 {[%clk 0:01:30.5]} 19. Rxd4 {[%clk 0:01:59.9]} 19... Qc6
{[%clk 0:01:11.9]} 20. Nd6 {[%clk 0:01:57.8]} 20... Bxd6 {[%clk 0:00:48.9]} 21.
Rxc6 {[%clk 0:01:55.3]} 21... Bxe5 {[%clk 0:00:49]} 22. Rc2 {[%clk 0:01:40.2]}
22... Bxd4 {[%clk 0:00:47.8]} 23. Bxd4 {[%clk 0:01:39.3]} 23... Bd7 {[%clk
0:00:47.8]} 24. f3 {[%clk 0:01:36.2]} 24... Bc6 {[%clk 0:00:47.8]} 25. Qe1
{[%clk 0:01:31.7]} 25... Rad8 {[%clk 0:00:45.1]} 26. Qe5 {[%clk 0:01:30.3]}
26... f6 {[%clk 0:00:44.3]} 27. Qe3 {[%clk 0:01:29.9]} 27... e5 {[%clk
0:00:44.4]} 28. Bb6 {[%clk 0:01:25.2]} 28... Rd5 {[%clk 0:00:43.7]} 29. h4
{[%clk 0:01:16.1]} 29... Kf7 {[%clk 0:00:41.1]} 30. h5 {[%clk 0:01:14.8]} 30...
Re7 {[%clk 0:00:34.2]} 31. Rc3 {[%clk 0:01:13.7]} 31... Red7 {[%clk 0:00:33.1]}
32. h6 {[%clk 0:01:12.3]} 32... g6 {[%clk 0:00:32.3]} 33. a5 {[%clk 0:00:59.7]}
33... Bb5 {[%clk 0:00:31.5]} 34. Rc7 {[%clk 0:00:54]} 34... Bxd3 {[%clk
0:00:26.8]} 35. Rxd7+ {[%clk 0:00:53]} 35... Rxd7 {[%clk 0:00:27.3]} 36. f4
{[%clk 0:00:50.6]} 36... e4 {[%clk 0:00:26.6]} 37. f5 {[%clk 0:00:49.7]} 37...
g5 {[%clk 0:00:23]} 38. Qh3 {[%clk 0:00:47.3]} 38... Be2 {[%clk 0:00:20.8]} 39.
Kf2 {[%clk 0:00:42]} 39... Rd2 {[%clk 0:00:18.1]} 40. Ke3 {[%clk 0:00:41.5]}
40... Rd3+ {[%clk 0:00:17.4]} 41. Kxe2 {[%clk 0:00:41.5]} 41... Rxh3 {[%clk
0:00:16.7]} 42. gxh3 {[%clk 0:00:41.6]} 42... Ke7 {[%clk 0:00:17]} 43. Ke3
{[%clk 0:00:41.4]} 43... Kd6 {[%clk 0:00:16.7]} 44. Kxe4 {[%clk 0:00:41.2]}
44... Kc6 {[%clk 0:00:17]} 45. Bd4 {[%clk 0:00:40.9]} 1-0

[Event "Late-Titled-Tuesday-Blitz-February-27-2024"]
[Site "Chess.com"]
[Date "2024.02.27"]
[Round "10"]
[White "fandebobbyfischer"]
[Black "Josetricks"]
[Result "1-0"]
[WhiteElo "2686"]
[BlackElo "2481"]
[TimeControl "180+1"]
[EndTime "15:55:32 PST"]
[Termination "fandebobbyfischer won by resignation"]

1. e4 {[%clk 0:03:00.9]} 1... g6 {[%clk 0:02:59.5]} 2. d4 {[%clk 0:03:00.6]}
2... Bg7 {[%clk 0:03:00.4]} 3. c3 {[%clk 0:03:01.1]} 3... c6 {[%clk 0:03:00.9]}
4. Nf3 {[%clk 0:03:01.2]} 4... d5 {[%clk 0:03:01.5]} 5. e5 {[%clk 0:03:01.9]}
5... Bg4 {[%clk 0:03:01.3]} 6. Be2 {[%clk 0:03:01.8]} 6... f6 {[%clk 0:03:01.1]}
7. exf6 {[%clk 0:03:00.8]} 7... Nxf6 {[%clk 0:03:01.2]} 8. O-O {[%clk
0:03:01.7]} 8... O-O {[%clk 0:03:01]} 9. Ne5 {[%clk 0:03:00.3]} 9... Bf5 {[%clk
0:02:56.8]} 10. Nd2 {[%clk 0:02:59.1]} 10... Nfd7 {[%clk 0:02:55.4]} 11. Ndf3
{[%clk 0:02:57]} 11... Nxe5 {[%clk 0:02:55.7]} 12. dxe5 {[%clk 0:02:57.3]} 12...
Nd7 {[%clk 0:02:56.3]} 13. Nd4 {[%clk 0:02:26.2]} 13... Nxe5 {[%clk 0:02:51.7]}
14. Nxf5 {[%clk 0:02:26.1]} 14... Rxf5 {[%clk 0:02:51.3]} 15. Be3 {[%clk
0:02:25.6]} 15... Qd6 {[%clk 0:02:39]} 16. Qb3 {[%clk 0:02:22.7]} 16... b6
{[%clk 0:02:34]} 17. Rad1 {[%clk 0:02:23]} 17... e6 {[%clk 0:02:27.1]} 18. c4
{[%clk 0:02:21.7]} 18... Re8 {[%clk 0:02:05.4]} 19. Qa4 {[%clk 0:02:19.4]} 19...
Nd7 {[%clk 0:02:00.8]} 20. Qxa7 {[%clk 0:00:55.9]} 20... Bxb2 {[%clk 0:01:40.5]}
21. cxd5 {[%clk 0:00:53.6]} 21... exd5 {[%clk 0:01:38]} 22. Bg4 {[%clk
0:00:52.5]} 22... Rf7 {[%clk 0:01:37.6]} 23. Bxd7 {[%clk 0:00:51.2]} 23... Rxd7
{[%clk 0:01:33.2]} 24. Qxb6 {[%clk 0:00:51.6]} 24... Be5 {[%clk 0:01:32.4]} 25.
g3 {[%clk 0:00:50.5]} 25... Rb8 {[%clk 0:01:26.9]} 26. Qa6 {[%clk 0:00:50.6]}
26... Rdb7 {[%clk 0:01:09.5]} 27. Rc1 {[%clk 0:00:47.4]} 27... Rc7 {[%clk
0:01:04.1]} 28. Rfd1 {[%clk 0:00:47.2]} 28... Rbc8 {[%clk 0:00:57.4]} 29. a4
{[%clk 0:00:45.6]} 29... Qe7 {[%clk 0:00:55.9]} 30. a5 {[%clk 0:00:43.1]} 30...
Qf6 {[%clk 0:00:36.9]} 31. Bb6 {[%clk 0:00:42.5]} 31... Rf7 {[%clk 0:00:35.6]}
32. Qxc8+ {[%clk 0:00:42]} 32... Rf8 {[%clk 0:00:36]} 33. Qxc6 {[%clk
0:00:39.7]} 33... Qf5 {[%clk 0:00:35.8]} 34. Qxd5+ {[%clk 0:00:39.3]} 34... Kg7
{[%clk 0:00:35.6]} 35. Qxe5+ {[%clk 0:00:34.9]} 1-0

[Event "Late-Titled-Tuesday-Blitz-February-27-2024"]
[Site "Chess.com"]
[Date "2024.02.27"]
[Round "10"]
[White "TheMagician"]
[Black "Akhayan"]
[Result "1-0"]
[WhiteElo "2189"]
[BlackElo "2418"]
[TimeControl "180+1"]
[EndTime "15:55:33 PST"]
[Termination "TheMagician won by resignation"]

1. c4 {[%clk 0:03:00.9]} 1... f5 {[%clk 0:02:58.8]} 2. Nc3 {[%clk 0:03:00.4]}
2... Nf6 {[%clk 0:02:59.4]} 3. g3 {[%clk 0:03:00.5]} 3... e6 {[%clk 0:02:58.9]}
4. Bg2 {[%clk 0:02:59.6]} 4... c6 {[%clk 0:02:59.5]} 5. Nf3 {[%clk 0:02:59]}
5... d5 {[%clk 0:02:59.9]} 6. cxd5 {[%clk 0:02:58.7]} 6... exd5 {[%clk
0:02:59.7]} 7. d4 {[%clk 0:02:58.7]} 7... Bd6 {[%clk 0:02:58.4]} 8. O-O {[%clk
0:02:46.9]} 8... O-O {[%clk 0:02:58.6]} 9. Ne1 {[%clk 0:02:44.3]} 9... Qe7
{[%clk 0:02:56.6]} 10. Nd3 {[%clk 0:02:44]} 10... Ne4 {[%clk 0:02:54]} 11. Bf4
{[%clk 0:02:43.3]} 11... Nd7 {[%clk 0:02:45.5]} 12. Bxd6 {[%clk 0:02:42]} 12...
Qxd6 {[%clk 0:02:43.4]} 13. Rc1 {[%clk 0:02:35.2]} 13... Ndf6 {[%clk 0:02:42.3]}
14. e3 {[%clk 0:02:22.4]} 14... Nxc3 {[%clk 0:02:40.8]} 15. bxc3 {[%clk
0:02:22.1]} 15... Ne4 {[%clk 0:02:40.2]} 16. c4 {[%clk 0:02:21.1]} 16... Be6
{[%clk 0:02:37.8]} 17. c5 {[%clk 0:02:20]} 17... Qe7 {[%clk 0:02:35]} 18. Qc2
{[%clk 0:02:19]} 18... Rae8 {[%clk 0:02:25.4]} 19. Rb1 {[%clk 0:02:17.9]} 19...
Bc8 {[%clk 0:02:24.8]} 20. Rbe1 {[%clk 0:02:15.2]} 20... Kh8 {[%clk 0:02:23.3]}
21. Re2 {[%clk 0:02:13.5]} 21... Qg5 {[%clk 0:02:13.8]} 22. f4 {[%clk
0:02:04.3]} 22... Qh5 {[%clk 0:02:11.2]} 23. Bf3 {[%clk 0:02:00.3]} 23... Qg6
{[%clk 0:02:07.5]} 24. Ne5 {[%clk 0:01:59]} 24... Qf6 {[%clk 0:02:06.2]} 25. a4
{[%clk 0:01:57.1]} 25... g5 {[%clk 0:01:59.6]} 26. Bxe4 {[%clk 0:01:48.3]} 26...
fxe4 {[%clk 0:01:56.8]} 27. Ref2 {[%clk 0:01:46.8]} 27... g4 {[%clk 0:01:26.6]}
28. a5 {[%clk 0:01:42.1]} 28... a6 {[%clk 0:01:21]} 29. Rb1 {[%clk 0:01:37.2]}
29... Kg7 {[%clk 0:01:16.3]} 30. Qd1 {[%clk 0:01:25.2]} 30... h5 {[%clk
0:01:16.1]} 31. Rfb2 {[%clk 0:01:19.1]} 31... Re7 {[%clk 0:01:12.3]} 32. Qe1
{[%clk 0:01:13]} 32... Qf5 {[%clk 0:01:10.3]} 33. Rb4 {[%clk 0:01:09.7]} 33...
Rh8 {[%clk 0:01:01.5]} 34. R1b2 {[%clk 0:01:09.6]} 34... Qf6 {[%clk 0:00:58.3]}
35. Qb1 {[%clk 0:01:06.5]} 35... Kg8 {[%clk 0:00:34.6]} 36. Rxb7 {[%clk
0:01:03.8]} 36... Bxb7 {[%clk 0:00:34.3]} 37. Rxb7 {[%clk 0:01:04.4]} 37... Re8
{[%clk 0:00:10.8]} 38. Rc7 {[%clk 0:01:00.7]} 38... h4 {[%clk 0:00:10.2]} 39.
Rxc6 {[%clk 0:00:57.6]} 39... Qf5 {[%clk 0:00:10.5]} 40. Rg6+ {[%clk 0:00:56.5]}
40... Kf8 {[%clk 0:00:09]} 41. Rg5 {[%clk 0:00:52]} 41... Qf6 {[%clk 0:00:07.2]}
42. Nd7+ {[%clk 0:00:51.6]} 1-0

[Event "Late-Titled-Tuesday-Blitz-February-27-2024"]
[Site "Chess.com"]
[Date "2024.02.27"]
[Round "10"]
[White "jcibarra"]
[Black "NateSolon"]
[Result "1-0"]
[WhiteElo "2917"]
[BlackElo "2680"]
[TimeControl "180+1"]
[EndTime "15:55:40 PST"]
[Termination "jcibarra won on time"]

1. e4 {[%clk 0:02:59.9]} 1... c5 {[%clk 0:02:59.4]} 2. Nf3 {[%clk 0:02:59.8]}
2... Nf6 {[%clk 0:02:59.5]} 3. e5 {[%clk 0:02:59.2]} 3... Nd5 {[%clk 0:02:59.9]}
4. d4 {[%clk 0:02:59.2]} 4... cxd4 {[%clk 0:02:59.9]} 5. Qxd4 {[%clk 0:03:00]}
5... e6 {[%clk 0:03:00]} 6. a3 {[%clk 0:02:59.7]} 6... Nc6 {[%clk 0:02:58.9]} 7.
Qd1 {[%clk 0:02:59.1]} 7... Qc7 {[%clk 0:02:55.5]} 8. c4 {[%clk 0:02:58.3]} 8...
Nde7 {[%clk 0:02:55.8]} 9. Nc3 {[%clk 0:02:57.3]} 9... Nxe5 {[%clk 0:02:35.6]}
10. Nb5 {[%clk 0:02:56.7]} 10... Nxf3+ {[%clk 0:02:34.8]} 11. Qxf3 {[%clk
0:02:56.6]} 11... Qe5+ {[%clk 0:02:25]} 12. Be2 {[%clk 0:02:55.4]} 12... Ng6
{[%clk 0:02:22.8]} 13. Qg3 {[%clk 0:02:55.7]} 13... Qxg3 {[%clk 0:02:03.9]} 14.
hxg3 {[%clk 0:02:56.6]} 14... Kd8 {[%clk 0:02:03.9]} 15. Be3 {[%clk 0:02:54.6]}
15... b6 {[%clk 0:01:56.8]} 16. Bf3 {[%clk 0:02:41.4]} 16... d5 {[%clk
0:01:54.8]} 17. cxd5 {[%clk 0:02:34]} 17... Ne5 {[%clk 0:01:54.8]} 18. Be4
{[%clk 0:01:51]} 18... Bb7 {[%clk 0:01:35.3]} 19. O-O-O {[%clk 0:01:37.3]} 19...
Rc8+ {[%clk 0:00:50.6]} 20. Kb1 {[%clk 0:01:36]} 20... Ke8 {[%clk 0:00:51.1]}
21. Nxa7 {[%clk 0:01:30.5]} 21... Rc4 {[%clk 0:00:50.6]} 22. Bd4 {[%clk
0:01:19.3]} 22... exd5 {[%clk 0:00:41.3]} 23. Bc2 {[%clk 0:01:11.5]} 23... Rxd4
{[%clk 0:00:20]} 24. Rxd4 {[%clk 0:01:09.9]} 24... Bc5 {[%clk 0:00:20.7]} 25.
Rd2 {[%clk 0:01:05.7]} 25... Kd7 {[%clk 0:00:18.2]} 26. Ba4+ {[%clk 0:01:03.5]}
26... Ke6 {[%clk 0:00:17.3]} 27. Nb5 {[%clk 0:00:57.4]} 27... Nc4 {[%clk
0:00:14.3]} 28. Re2+ {[%clk 0:00:54.3]} 28... Kf6 {[%clk 0:00:12.7]} 29. Rd1
{[%clk 0:00:49.2]} 29... Rd8 {[%clk 0:00:08.3]} 30. Nc3 {[%clk 0:00:37.1]} 30...
d4 {[%clk 0:00:04.8]} 31. Ne4+ {[%clk 0:00:33.9]} 31... Kg6 {[%clk 0:00:04.5]}
32. Bb5 {[%clk 0:00:26]} 32... Nd6 {[%clk 0:00:02.4]} 33. Nxd6 {[%clk
0:00:19.4]} 33... Rxd6 {[%clk 0:00:03.3]} 34. b4 {[%clk 0:00:18.8]} 1-0

[Event "Late-Titled-Tuesday-Blitz-February-27-2024"]
[Site "Chess.com"]
[Date "2024.02.27"]
[Round "10"]
[White "Matalon"]
[Black "AcostaPablo"]
[Result "1/2-1/2"]
[WhiteElo "2473"]
[BlackElo "2626"]
[TimeControl "180+1"]
[EndTime "15:55:41 PST"]
[Termination "Game drawn by repetition"]

1. e4 {[%clk 0:03:00.9]} 1... e6 {[%clk 0:02:46.7]} 2. d4 {[%clk 0:02:59.7]}
2... d5 {[%clk 0:02:45.2]} 3. Nd2 {[%clk 0:03:00.3]} 3... Nf6 {[%clk 0:02:43.9]}
4. Bd3 {[%clk 0:02:59.3]} 4... c5 {[%clk 0:02:42.7]} 5. e5 {[%clk 0:02:59.3]}
5... Nfd7 {[%clk 0:02:42.3]} 6. c3 {[%clk 0:02:59.9]} 6... Nc6 {[%clk
0:02:42.8]} 7. Ne2 {[%clk 0:03:00]} 7... f6 {[%clk 0:02:41]} 8. exf6 {[%clk
0:02:51.5]} 8... Qxf6 {[%clk 0:02:38.7]} 9. Nf3 {[%clk 0:02:48.4]} 9... Bd6
{[%clk 0:02:38]} 10. Bg5 {[%clk 0:02:36.7]} 10... Qf7 {[%clk 0:02:35.7]} 11. Bh4
{[%clk 0:02:36.3]} 11... e5 {[%clk 0:02:29.5]} 12. dxe5 {[%clk 0:02:32.5]} 12...
Ndxe5 {[%clk 0:02:26.7]} 13. Nxe5 {[%clk 0:02:32.4]} 13... Bxe5 {[%clk
0:02:23.2]} 14. O-O {[%clk 0:02:24.4]} 14... O-O {[%clk 0:02:10.4]} 15. Bg3
{[%clk 0:02:22.2]} 15... Bf6 {[%clk 0:02:02.8]} 16. Bd6 {[%clk 0:02:09.7]} 16...
Be7 {[%clk 0:01:59.7]} 17. Bxe7 {[%clk 0:02:08.5]} 17... Qxe7 {[%clk 0:01:48.5]}
18. Ng3 {[%clk 0:02:01.4]} 18... Ne5 {[%clk 0:01:38.4]} 19. Re1 {[%clk
0:01:57.1]} 19... Qf6 {[%clk 0:01:33]} 20. Bxh7+ {[%clk 0:01:55.6]} 20... Kh8
{[%clk 0:01:21.4]} 21. Qc2 {[%clk 0:01:25.2]} 21... g6 {[%clk 0:01:02.8]} 22.
Rxe5 {[%clk 0:01:19.1]} 22... Qxe5 {[%clk 0:01:01.8]} 23. Bxg6 {[%clk
0:01:19.1]} 23... Bg4 {[%clk 0:00:53.8]} 24. h3 {[%clk 0:01:09.9]} 24... Bd7
{[%clk 0:00:50.6]} 25. Qd2 {[%clk 0:01:05.3]} 25... Kg7 {[%clk 0:00:44.8]} 26.
Re1 {[%clk 0:00:54.5]} 26... Qxe1+ {[%clk 0:00:28]} 27. Qxe1 {[%clk 0:00:53.4]}
27... Kxg6 {[%clk 0:00:28.7]} 28. Qe7 {[%clk 0:00:52.9]} 28... Bc6 {[%clk
0:00:26.3]} 29. Qxc5 {[%clk 0:00:52.6]} 29... Rae8 {[%clk 0:00:25]} 30. h4
{[%clk 0:00:51.1]} 30... Re1+ {[%clk 0:00:24.6]} 31. Kh2 {[%clk 0:00:50.4]}
31... Rf4 {[%clk 0:00:24.6]} 32. h5+ {[%clk 0:00:49.9]} 32... Kg5 {[%clk
0:00:19.7]} 33. Nh1 {[%clk 0:00:36.2]} 33... Rh4+ {[%clk 0:00:19.4]} 34. Kg3
{[%clk 0:00:36.7]} 34... Rg4+ {[%clk 0:00:17]} 35. Kh2 {[%clk 0:00:36.1]} 35...
Rh4+ {[%clk 0:00:15.2]} 36. Kg3 {[%clk 0:00:35.9]} 36... Rhxh1 {[%clk
0:00:13.7]} 37. Qf8 {[%clk 0:00:34.9]} 37... Kxh5 {[%clk 0:00:12.9]} 38. Qf5+
{[%clk 0:00:34.4]} 38... Kh6 {[%clk 0:00:13.1]} 39. Qf6+ {[%clk 0:00:34.7]}
39... Kh7 {[%clk 0:00:14]} 40. Qf7+ {[%clk 0:00:34.9]} 40... Kh8 {[%clk
0:00:14.7]} 41. Qf8+ {[%clk 0:00:35.2]} 41... Kh7 {[%clk 0:00:15.5]} 42. Qf6
{[%clk 0:00:35.5]} 42... Re8 {[%clk 0:00:13.5]} 43. Qf7+ {[%clk 0:00:34.5]}
43... Kh8 {[%clk 0:00:14.2]} 44. Qf6+ {[%clk 0:00:34.8]} 44... Kg8 {[%clk
0:00:14.8]} 45. Qg6+ {[%clk 0:00:34.9]} 45... Kh8 {[%clk 0:00:15.3]} 46. Qf6+
{[%clk 0:00:34.5]} 46... Kh7 {[%clk 0:00:16.1]} 47. Qf7+ {[%clk 0:00:34.5]}
47... Kh6 {[%clk 0:00:15.6]} 48. Qf6+ {[%clk 0:00:34.5]} 48... Kh7 {[%clk
0:00:16.2]} 1/2-1/2